Workbook

Sheet котл.курин 2н
M1: Дата | N1: 2024-01-09
A2: № рецептуры | B2: Наименование блюд | C2: Выход,г | D2: Белки, г | E2: Жиры, г | F2: Углеводы, г | G2: Калорийность, ккал | H2: Витамин B1, мг | I2: Витамин С, мг | J2: Витамин А, мг | K2: Витамин Е, мг | L2: Ca, мг | M2: P, мг | N2: Mg, мг | O2: Fe, мг
B3: 1-ая неделя
B4: 2 день
A5: ТТК | B5: Котлета из мяса птицы | C5: 90 | D5: 10.20 | E5: 12.93 | F5: 13.79 | G5: 198.00 | H5: 0.09 | I5: 0.94 | J5: 46.26 | K5: 2.52 | L5: 47.83 | M5: 85.09 | N5: 18.72 | O5: 1.26
A6: № 203 Сбор.рец. На прод-ию для обуч. Во всех образ.учреж-Дели 2017 | B6: Макаронные изделия отварные с маслом сливочным | C6: 150/5 | D6: 5.70 | E6: 4.30 | F6: 31.99 | G6: 189.30 | H6: 0.06 | I6: 0.00 | J6: 20.00 | K6: 0.82 | L6: 12.39 | M6: 38.67 | N6: 8.62 | O6: 0.86
A7: ТТК | B7: Зеленый горошек к/с (доп.гарнир) | C7: 40 | D7: 1.19 | E7: 2.08 | F7: 2.50 | G7: 33.44 | H7: 0.04 | I7: 4.40 | J7: 0.00 | K7: 0.96 | L7: 8.58 | M7: 23.98 | N7: 8.32 | O7: 0.27
A8: №349 Сбор.рец. На прод-ию для обуч. Во всех образ.учреж-Дели 2017 | B8: Компот из сухофруктов (75С) | C8: 200 | D8: 0.66 | E8: 0.09 | F8: 22.03 | G8: 92.80 | H8: 0.02 | I8: 0.73 | J8: 0.00 | K8: 0.51 | L8: 32.18 | M8: 23.44 | N8: 17.46 | O8: 0.67
A9: Хим.состав и калорийность российских продуктов питания,табл 6, стр 144 , 2012 Дели + | B9: Хлеб ржаной | C9: 30 | D9: 1.98 | E9: 0.36 | F9: 11.88 | G9: 59.40 | H9: 0.05 | I9: 0.00 | J9: 0.00 | K9: 0.42 | L9: 8.70 | M9: 45.00 | N9: 14.10 | O9: 1.17
B10: Итого: | C10: 515 | D10: =SUM(D5:D9) -> 19.73 | E10: =SUM(E5:E9) -> 19.75 | F10: =SUM(F5:F9) -> 82.19 | G10: =SUM(G5:G9) -> 572.94 | H10: =SUM(H5:H9) -> 0.26 | I10: =SUM(I5:I9) -> 6.06 | J10: =SUM(J5:J9) -> 66.26 | K10: =SUM(K5:K9) -> 5.23 | L10: =SUM(L5:L9) -> 109.68 | M10: =SUM(M5:M9) -> 216.17 | N10: =SUM(N5:N9) -> 67.22 | O10: =SUM(O5:O9) -> 4.23
B11: Итого: | C11: 515 | D11: =SUM(D6:D10) -> 29.27 | E11: =SUM(E6:E10) -> 26.58 | F11: =SUM(F6:F10) -> 150.60 | G11: =SUM(G6:G10) -> 947.88 | H11: =SUM(H6:H10) -> 0.42 | I11: =SUM(I6:I10) -> 11.19 | J11: =SUM(J6:J10) -> 86.26 | K11: =SUM(K6:K10) -> 7.95 | L11: =SUM(L6:L10) -> 171.53 | M11: =SUM(M6:M10) -> 347.26 | N11: =SUM(N6:N10) -> 115.72 | O11: =SUM(O6:O10) -> 7.21
